[Event "Titled Tuesday Blitz July 20 2021"]
[White "Manzone, Alessandro"]
[Black "Ouellet, Maili-Jade"]
[WhiteFideId "112488"]
[BlackFideId "2620472"]
[WhiteElo "2327"]
[BlackElo "1886"]
[Result "1-0"]
[Round "07"]
[TimeControl "180+1"]
[Date "2021.07.21"]
[WhiteClock "0:00:17"]
[BlackClock "0:00:03"]

1. d4 {[%clk 0:02:57]}  d5 {[%clk 0:03:00]} 2. c4 {[%clk 0:02:57]}  e6 {[%clk 0:02:59]} 3. Nc3 {[%clk 0:02:57]}  c6 {[%clk 0:02:59]} 4. e3 {[%clk 0:02:57]}  Nf6 {[%clk 0:02:58]} 5. Nf3 {[%clk 0:02:57]}  Be7 {[%clk 0:02:58]} 6. b3 {[%clk 0:02:54]}  O-O {[%clk 0:02:58]} 7. Bd3 {[%clk 0:02:54]}  Nbd7 {[%clk 0:02:58]} 8. O-O {[%clk 0:02:55]}  Re8 {[%clk 0:02:57]} 9. Bb2 {[%clk 0:02:55]}  Nf8 {[%clk 0:02:57]} 10. Ne5 {[%clk 0:02:52]}  Ng6 {[%clk 0:02:57]} 11. f4 {[%clk 0:02:52]}  Bd6 {[%clk 0:02:27]} 12. Rf3 {[%clk 0:02:47]}  Qc7 {[%clk 0:02:20]} 13. c5 {[%clk 0:02:46]}  Bf8 {[%clk 0:02:17]} 14. Rh3 {[%clk 0:02:44]}  b6 {[%clk 0:02:14]} 15. b4 {[%clk 0:02:30]}  a5 {[%clk 0:02:13]} 16. a3 {[%clk 0:02:29]}  Ba6 {[%clk 0:02:02]} 17. Bc2 {[%clk 0:02:27]}  bxc5 {[%clk 0:01:56]} 18. bxc5 {[%clk 0:02:25]}  Rab8 {[%clk 0:01:56]} 19. Bc1 {[%clk 0:02:15]}  Rb7 {[%clk 0:01:44]} 20. g4 {[%clk 0:02:10]}  Be7 {[%clk 0:01:07]} 21. g5 {[%clk 0:02:02]}  Nd7 {[%clk 0:01:06]} 22. Qh5 {[%clk 0:01:46]}  Ndf8 {[%clk 0:01:03]} 23. Na4 {[%clk 0:01:21]}  Bb5 {[%clk 0:00:21]} 24. Nb6 {[%clk 0:01:05]}  Bd8 {[%clk 0:00:20]} 25. Nbd7 {[%clk 0:00:58]}  Nxd7 {[%clk 0:00:15]} 26. Qxh7+ {[%clk 0:00:54]}  Kf8 {[%clk 0:00:14]} 27. Nxf7 {[%clk 0:00:43]}  Nde5 {[%clk 0:00:06]} 28. Nxe5 {[%clk 0:00:27]}  Nxe5 {[%clk 0:00:06]} 29. fxe5 {[%clk 0:00:28]}  Qf7 {[%clk 0:00:03]} 30. Bd2 {[%clk 0:00:20]}  Qg8 {[%clk 0:00:02]} 31. Qh4 {[%clk 0:00:18]}  Ke7 {[%clk 0:00:02]} 32. Rf3 {[%clk 0:00:17]}  Kd7 {[%clk 0:00:02]} 33. Qg4 {[%clk 0:00:17]}  Kc8 {[%clk 0:00:02]} 34. g6 {[%clk 0:00:17]}  Rf8 {[%clk 0:00:02]} 35. a4 {[%clk 0:00:17]}  Rxf3 {[%clk 0:00:01]} 36. Qxf3 {[%clk 0:00:18]}  Re7 {[%clk 0:00:01]} 37. axb5 {[%clk 0:00:17]}  cxb5 {[%clk 0:00:02]} 38. Bxa5 {[%clk 0:00:16]}  Re8 {[%clk 0:00:01]} 39. Bxd8 {[%clk 0:00:16]}  Rxd8 {[%clk 0:00:02]} 40. Ra8+ {[%clk 0:00:16]}  Kb7 {[%clk 0:00:02]} 41. Rxd8 {[%clk 0:00:16]}  Qxd8 {[%clk 0:00:03]} 42. Qf7+ {[%clk 0:00:17]}  Ka6 {[%clk 0:00:02]} 43. Qxe6+ {[%clk 0:00:16]}  Ka5 {[%clk 0:00:03]} 44. Qb6+ {[%clk 0:00:16]}  Qxb6 {[%clk 0:00:02]} 45. cxb6 {[%clk 0:00:17]}  Kxb6 {[%clk 0:00:03]} 46. Bb3 {[%clk 0:00:17]} 1-0


[Site "https://www.chess.com"]

[Event "Titled Tuesday Blitz July 20 2021"]
[White "Martins, Igor Carvalho Ribeiro"]
[Black "Buscar, Michael"]
[WhiteFideId "2162962"]
[BlackFideId "2603616"]
[WhiteElo "2514"]
[BlackElo "2010"]
[Result "1-0"]
[Round "07"]
[TimeControl "180+1"]
[Date "2021.07.21"]
[WhiteClock "0:00:04"]
[BlackClock "0:00:14"]

1. Nf3 {[%clk 0:03:00]}  Nf6 {[%clk 0:02:59]} 2. c4 {[%clk 0:02:59]}  g6 {[%clk 0:02:58]} 3. Nc3 {[%clk 0:02:59]}  Bg7 {[%clk 0:02:59]} 4. e4 {[%clk 0:02:59]}  d6 {[%clk 0:02:58]} 5. d4 {[%clk 0:02:59]}  O-O {[%clk 0:02:58]} 6. Be2 {[%clk 0:02:59]}  e5 {[%clk 0:02:57]} 7. Be3 {[%clk 0:02:59]}  Nc6 {[%clk 0:02:57]} 8. d5 {[%clk 0:02:59]}  Ne7 {[%clk 0:02:57]} 9. Nd2 {[%clk 0:02:59]}  Ne8 {[%clk 0:02:52]} 10. b4 {[%clk 0:02:58]}  f5 {[%clk 0:02:48]} 11. f3 {[%clk 0:02:58]}  f4 {[%clk 0:02:48]} 12. Bf2 {[%clk 0:02:57]}  g5 {[%clk 0:02:46]} 13. c5 {[%clk 0:02:56]}  Ng6 {[%clk 0:02:40]} 14. Nc4 {[%clk 0:02:56]}  h5 {[%clk 0:02:38]} 15. cxd6 {[%clk 0:02:54]}  cxd6 {[%clk 0:02:38]} 16. Nb5 {[%clk 0:02:53]}  a6 {[%clk 0:02:29]} 17. Nb6 {[%clk 0:02:52]}  Rb8 {[%clk 0:02:18]} 18. Na7 {[%clk 0:02:52]}  Bd7 {[%clk 0:02:11]} 19. Rc1 {[%clk 0:02:46]}  Nh4 {[%clk 0:02:04]} 20. O-O {[%clk 0:02:44]}  Rf6 {[%clk 0:01:49]} 21. Nxd7 {[%clk 0:02:22]}  Qxd7 {[%clk 0:01:48]} 22. b5 {[%clk 0:02:22]}  a5 {[%clk 0:01:31]} 23. b6 {[%clk 0:02:14]}  Rg6 {[%clk 0:01:24]} 24. Qb3 {[%clk 0:01:54]}  Nxg2 {[%clk 0:01:08]} 25. Kxg2 {[%clk 0:01:49]}  g4 {[%clk 0:01:09]} 26. fxg4 {[%clk 0:01:36]}  hxg4 {[%clk 0:01:07]} 27. Bb5 {[%clk 0:01:15]}  Qe7 {[%clk 0:01:01]} 28. Bxe8 {[%clk 0:00:53]}  Rxe8 {[%clk 0:00:58]} 29. Rc7 {[%clk 0:00:53]}  Qg5 {[%clk 0:00:54]} 30. Nc8 {[%clk 0:00:49]}  Bf8 {[%clk 0:00:50]} 31. Qb5 {[%clk 0:00:47]}  Rd8 {[%clk 0:00:44]} 32. Qd3 {[%clk 0:00:34]}  Rh6 {[%clk 0:00:33]} 33. Rh1 {[%clk 0:00:33]}  Rh3 {[%clk 0:00:28]} 34. Bg3 {[%clk 0:00:20]}  fxg3 {[%clk 0:00:22]} 35. hxg3 {[%clk 0:00:20]}  Qh5 {[%clk 0:00:20]} 36. Qf1 {[%clk 0:00:11]}  Bh6 {[%clk 0:00:17]} 37. Ne7+ {[%clk 0:00:07]}  Kh8 {[%clk 0:00:18]} 38. Nf5 {[%clk 0:00:06]}  Bg5 {[%clk 0:00:15]} 39. Nxd6 {[%clk 0:00:04]}  Rxd6 {[%clk 0:00:14]} 40. Qf8# {[%clk 0:00:04]} 1-0


[Site "https://www.chess.com"]

[Event "Titled Tuesday Blitz July 20 2021"]
[White "McDonald, Mike"]
[Black "Shahade, Gregory"]
[WhiteFideId "2635682"]
[BlackFideId "2009064"]
[WhiteElo "2490"]
[BlackElo "2682"]
[Result "0-1"]
[Round "07"]
[TimeControl "180+1"]
[Date "2021.07.21"]
[WhiteClock "0:00:02"]
[BlackClock "0:01:16"]

1. e4 {[%clk 0:03:00]}  e5 {[%clk 0:03:00]} 2. Nf3 {[%clk 0:03:01]}  Nc6 {[%clk 0:03:00]} 3. d4 {[%clk 0:03:01]}  exd4 {[%clk 0:03:00]} 4. Nxd4 {[%clk 0:03:02]}  Nf6 {[%clk 0:03:00]} 5. Nxc6 {[%clk 0:03:03]}  bxc6 {[%clk 0:03:00]} 6. e5 {[%clk 0:03:03]}  Qe7 {[%clk 0:02:57]} 7. Qe2 {[%clk 0:03:04]}  Nd5 {[%clk 0:02:57]} 8. c4 {[%clk 0:03:04]}  Ba6 {[%clk 0:02:57]} 9. b3 {[%clk 0:03:04]}  g6 {[%clk 0:02:57]} 10. Bb2 {[%clk 0:03:04]}  Bg7 {[%clk 0:02:57]} 11. g3 {[%clk 0:03:05]}  O-O {[%clk 0:02:57]} 12. Bg2 {[%clk 0:03:05]}  Rae8 {[%clk 0:02:58]} 13. O-O {[%clk 0:03:05]}  Bxe5 {[%clk 0:02:58]} 14. Qxe5 {[%clk 0:03:05]}  Qxe5 {[%clk 0:02:59]} 15. Bxe5 {[%clk 0:03:06]}  Rxe5 {[%clk 0:03:00]} 16. cxd5 {[%clk 0:03:06]}  Bxf1 {[%clk 0:03:00]} 17. Kxf1 {[%clk 0:03:07]}  cxd5 {[%clk 0:03:01]} 18. Nc3 {[%clk 0:03:07]}  c6 {[%clk 0:03:00]} 19. Rd1 {[%clk 0:03:01]}  Rfe8 {[%clk 0:02:59]} 20. Bf3 {[%clk 0:02:56]}  Kf8 {[%clk 0:02:50]} 21. Ne2 {[%clk 0:02:43]}  a5 {[%clk 0:02:42]} 22. Nf4 {[%clk 0:02:32]}  Rb8 {[%clk 0:02:27]} 23. h4 {[%clk 0:01:24]}  Ree8 {[%clk 0:02:24]} 24. Rd4 {[%clk 0:01:22]}  Rb4 {[%clk 0:02:22]} 25. Rd2 {[%clk 0:01:20]}  a4 {[%clk 0:02:17]} 26. bxa4 {[%clk 0:01:03]}  Rxa4 {[%clk 0:02:18]} 27. Rb2 {[%clk 0:01:03]}  Rea8 {[%clk 0:02:14]} 28. Rb7 {[%clk 0:01:00]}  R4a7 {[%clk 0:02:15]} 29. Rb3 {[%clk 0:00:51]}  Rxa2 {[%clk 0:02:14]} 30. Kg2 {[%clk 0:00:50]}  Ke7 {[%clk 0:02:04]} 31. Rb7 {[%clk 0:00:40]}  Kd6 {[%clk 0:02:02]} 32. Bg4 {[%clk 0:00:35]}  f5 {[%clk 0:02:01]} 33. Bf3 {[%clk 0:00:35]}  Rc2 {[%clk 0:01:55]} 34. Rb3 {[%clk 0:00:20]}  Raa2 {[%clk 0:01:52]} 35. Nh3 {[%clk 0:00:19]}  Rab2 {[%clk 0:01:48]} 36. Ra3 {[%clk 0:00:18]}  d4 {[%clk 0:01:45]} 37. h5 {[%clk 0:00:12]}  Rc3 {[%clk 0:01:40]} 38. Ra4 {[%clk 0:00:09]}  Kc5 {[%clk 0:01:26]} 39. hxg6 {[%clk 0:00:06]}  hxg6 {[%clk 0:01:27]} 40. Ra5+ {[%clk 0:00:04]}  Kb6 {[%clk 0:01:23]} 41. Ra4 {[%clk 0:00:04]}  c5 {[%clk 0:01:20]} 42. Nf4 {[%clk 0:00:04]}  Rcc2 {[%clk 0:01:18]} 43. Nxg6 {[%clk 0:00:02]}  Rxf2+ {[%clk 0:01:17]} 44. Kh3 {[%clk 0:00:02]}  Rh2# {[%clk 0:01:16]} 0-1


[Site "https://www.chess.com"]

[Event "Titled Tuesday Blitz July 20 2021"]
[White "Mokshanov, Alexey"]
[Black "Buchenau, Frank"]
[WhiteFideId "24121657"]
[BlackFideId "4604350"]
[WhiteElo "2262"]
[BlackElo "2255"]
[Result "0-1"]
[Round "07"]
[TimeControl "180+1"]
[Date "2021.07.21"]
[WhiteClock "0:00:20"]
[BlackClock "0:00:05"]

1. e4 {[%clk 0:03:00]}  e6 {[%clk 0:02:57]} 2. d4 {[%clk 0:03:00]}  d5 {[%clk 0:02:58]} 3. e5 {[%clk 0:03:01]}  c5 {[%clk 0:02:57]} 4. c3 {[%clk 0:03:01]}  Qb6 {[%clk 0:02:58]} 5. Nf3 {[%clk 0:03:01]}  Bd7 {[%clk 0:02:58]} 6. a3 {[%clk 0:03:01]}  Bb5 {[%clk 0:02:57]} 7. Bxb5+ {[%clk 0:03:01]}  Qxb5 {[%clk 0:02:57]} 8. a4 {[%clk 0:03:01]}  Qa6 {[%clk 0:02:50]} 9. dxc5 {[%clk 0:03:01]}  Bxc5 {[%clk 0:02:50]} 10. b4 {[%clk 0:03:02]}  Bf8 {[%clk 0:02:47]} 11. Na3 {[%clk 0:03:02]}  Nh6 {[%clk 0:02:20]} 12. Nb5 {[%clk 0:03:00]}  Qb6 {[%clk 0:02:18]} 13. Be3 {[%clk 0:02:52]}  Qd8 {[%clk 0:02:17]} 14. Bxa7 {[%clk 0:02:41]}  Nc6 {[%clk 0:02:14]} 15. Bc5 {[%clk 0:02:34]}  Bxc5 {[%clk 0:02:12]} 16. bxc5 {[%clk 0:02:35]}  O-O {[%clk 0:02:12]} 17. O-O {[%clk 0:02:34]}  f6 {[%clk 0:01:57]} 18. Qe2 {[%clk 0:02:25]}  Ng4 {[%clk 0:01:48]} 19. exf6 {[%clk 0:02:20]}  Rxf6 {[%clk 0:01:29]} 20. h3 {[%clk 0:02:15]}  Nh6 {[%clk 0:01:27]} 21. Nbd4 {[%clk 0:02:06]}  Qd7 {[%clk 0:01:11]} 22. Rfe1 {[%clk 0:01:57]}  Nf7 {[%clk 0:00:58]} 23. Qb5 {[%clk 0:01:47]}  e5 {[%clk 0:00:45]} 24. Nxc6 {[%clk 0:01:43]}  bxc6 {[%clk 0:00:44]} 25. Qe2 {[%clk 0:01:37]}  e4 {[%clk 0:00:42]} 26. Nd4 {[%clk 0:01:35]}  Rg6 {[%clk 0:00:41]} 27. Qe3 {[%clk 0:01:27]}  Ng5 {[%clk 0:00:39]} 28. Kh2 {[%clk 0:01:21]}  Qc7+ {[%clk 0:00:36]} 29. Qg3 {[%clk 0:01:17]}  Nf3+ {[%clk 0:00:34]} 30. gxf3 {[%clk 0:01:16]}  Rxg3 {[%clk 0:00:34]} 31. fxg3 {[%clk 0:01:17]}  exf3 {[%clk 0:00:28]} 32. Nxf3 {[%clk 0:01:17]}  Qa5 {[%clk 0:00:21]} 33. Nd4 {[%clk 0:01:13]}  Qxc5 {[%clk 0:00:20]} 34. Re3 {[%clk 0:01:09]}  h6 {[%clk 0:00:18]} 35. h4 {[%clk 0:01:04]}  Qc4 {[%clk 0:00:17]} 36. a5 {[%clk 0:01:01]}  c5 {[%clk 0:00:17]} 37. Nf5 {[%clk 0:00:46]}  d4 {[%clk 0:00:17]} 38. Re7 {[%clk 0:00:46]}  dxc3 {[%clk 0:00:14]} 39. Rd1 {[%clk 0:00:31]}  c2 {[%clk 0:00:13]} 40. Rdd7 {[%clk 0:00:31]}  Kh8 {[%clk 0:00:10]} 41. Rxg7 {[%clk 0:00:30]}  Qe2+ {[%clk 0:00:09]} 42. Kh3 {[%clk 0:00:30]}  Qf1+ {[%clk 0:00:09]} 43. Kg4 {[%clk 0:00:30]}  h5+ {[%clk 0:00:07]} 44. Kg5 {[%clk 0:00:23]}  c1=Q+ {[%clk 0:00:07]} 45. Kg6 {[%clk 0:00:23]}  Qxf5+ {[%clk 0:00:06]} 46. Kxf5 {[%clk 0:00:24]}  Qc2+ {[%clk 0:00:05]} 47. Kg5 {[%clk 0:00:24]}  Rf8 {[%clk 0:00:05]} 48. Kxh5 {[%clk 0:00:21]}  Qf5+ {[%clk 0:00:05]} 49. Rg5 {[%clk 0:00:20]}  Qxd7 {[%clk 0:00:05]} 0-1


[Site "https://www.chess.com"]

[Event "Titled Tuesday Blitz July 20 2021"]
[White "Nakamura, Hikaru"]
[Black "Rustemov, Alexander"]
[WhiteFideId "2016192"]
[BlackFideId "4119002"]
[WhiteElo "2900"]
[BlackElo "2857"]
[Result "1-0"]
[Round "07"]
[TimeControl "180+1"]
[Date "2021.07.20"]
[WhiteClock "0:01:00"]
[BlackClock "0:00:03"]

1. Nf3 {[%clk 0:03:00]}  d5 {[%clk 0:02:59]} 2. e3 {[%clk 0:02:59]}  Nf6 {[%clk 0:02:59]} 3. c4 {[%clk 0:02:59]}  c6 {[%clk 0:03:00]} 4. d4 {[%clk 0:02:59]}  Bf5 {[%clk 0:02:58]} 5. Nc3 {[%clk 0:02:58]}  e6 {[%clk 0:02:59]} 6. Nh4 {[%clk 0:02:59]}  Bg6 {[%clk 0:02:58]} 7. Nxg6 {[%clk 0:02:55]}  hxg6 {[%clk 0:02:59]} 8. Rb1 {[%clk 0:02:52]}  Nbd7 {[%clk 0:02:45]} 9. c5 {[%clk 0:02:52]}  e5 {[%clk 0:02:28]} 10. b4 {[%clk 0:02:52]}  a6 {[%clk 0:02:27]} 11. a4 {[%clk 0:02:48]}  Be7 {[%clk 0:02:25]} 12. g3 {[%clk 0:02:47]}  O-O {[%clk 0:02:23]} 13. Bg2 {[%clk 0:02:43]}  Re8 {[%clk 0:02:23]} 14. O-O {[%clk 0:02:43]}  Qc7 {[%clk 0:02:15]} 15. b5 {[%clk 0:02:40]}  axb5 {[%clk 0:02:14]} 16. axb5 {[%clk 0:02:41]}  Nf8 {[%clk 0:02:08]} 17. Qc2 {[%clk 0:02:11]}  Ne6 {[%clk 0:02:06]} 18. Ne2 {[%clk 0:02:11]}  e4 {[%clk 0:01:46]} 19. Kh1 {[%clk 0:02:10]}  Ng5 {[%clk 0:01:41]} 20. Ng1 {[%clk 0:02:09]}  Qd7 {[%clk 0:01:40]} 21. bxc6 {[%clk 0:02:07]}  bxc6 {[%clk 0:01:39]} 22. Bd2 {[%clk 0:02:07]}  Ng4 {[%clk 0:01:39]} 23. h3 {[%clk 0:01:40]}  Nh6 {[%clk 0:01:33]} 24. Ra1 {[%clk 0:01:40]}  f5 {[%clk 0:01:27]} 25. Rxa8 {[%clk 0:01:37]}  Rxa8 {[%clk 0:01:26]} 26. Rb1 {[%clk 0:01:38]}  Ne6 {[%clk 0:01:20]} 27. Ne2 {[%clk 0:01:34]}  g5 {[%clk 0:01:19]} 28. Qb3 {[%clk 0:01:34]}  Nf7 {[%clk 0:01:15]} 29. Bf1 {[%clk 0:01:32]}  Nfd8 {[%clk 0:01:01]} 30. Qb2 {[%clk 0:01:29]}  g6 {[%clk 0:01:00]} 31. Ra1 {[%clk 0:01:29]}  Rxa1 {[%clk 0:00:59]} 32. Qxa1 {[%clk 0:01:30]}  Qb7 {[%clk 0:00:59]} 33. Qa2 {[%clk 0:01:29]}  Kf7 {[%clk 0:00:56]} 34. Kg1 {[%clk 0:01:29]}  f4 {[%clk 0:00:44]} 35. g4 {[%clk 0:01:24]}  f3 {[%clk 0:00:23]} 36. Nc1 {[%clk 0:01:22]}  Ke8 {[%clk 0:00:19]} 37. Nb3 {[%clk 0:01:22]}  Nf7 {[%clk 0:00:18]} 38. Na5 {[%clk 0:01:21]}  Qa8 {[%clk 0:00:18]} 39. Qb3 {[%clk 0:01:17]}  Ned8 {[%clk 0:00:15]} 40. Qb6 {[%clk 0:01:16]}  Kd7 {[%clk 0:00:14]} 41. Ba6 {[%clk 0:01:13]}  Bf6 {[%clk 0:00:09]} 42. Bc3 {[%clk 0:01:08]}  Ke7 {[%clk 0:00:06]} 43. Kf1 {[%clk 0:01:04]}  Kd7 {[%clk 0:00:06]} 44. Ke1 {[%clk 0:01:04]}  Ke7 {[%clk 0:00:06]} 45. Kd1 {[%clk 0:01:05]}  Kd7 {[%clk 0:00:07]} 46. Kc2 {[%clk 0:01:06]}  Ke7 {[%clk 0:00:07]} 47. Kb3 {[%clk 0:01:06]}  Kd7 {[%clk 0:00:07]} 48. Kb2 {[%clk 0:01:02]}  Ke7 {[%clk 0:00:07]} 49. Nb3 {[%clk 0:01:03]}  Kd7 {[%clk 0:00:07]} 50. Ba5 {[%clk 0:01:03]}  Ke7 {[%clk 0:00:04]} 51. Kc2 {[%clk 0:01:03]}  Ke8 {[%clk 0:00:04]} 52. Nc1 {[%clk 0:01:03]}  Be7 {[%clk 0:00:04]} 53. Na2 {[%clk 0:01:02]}  Kd7 {[%clk 0:00:03]} 54. Qc7+ {[%clk 0:00:59]}  Ke8 {[%clk 0:00:03]} 55. Nb4 {[%clk 0:01:00]} 1-0


[Site "https://www.chess.com"]

[Event "Titled Tuesday Blitz July 20 2021"]
[White "Narayanan.S.L"]
[Black "Wagner, Dennis"]
[WhiteFideId "5058422"]
[BlackFideId "24650684"]
[WhiteElo "2617"]
[BlackElo "2355"]
[Result "1-0"]
[Round "07"]
[TimeControl "180+1"]
[Date "2021.07.20"]
[WhiteClock "0:01:51"]
[BlackClock "0:00:14"]

1. b3 {[%clk 0:03:00]}  e5 {[%clk 0:02:59]} 2. Bb2 {[%clk 0:03:01]}  Nc6 {[%clk 0:03:00]} 3. e3 {[%clk 0:03:01]}  Nf6 {[%clk 0:03:00]} 4. c4 {[%clk 0:03:01]}  d5 {[%clk 0:03:00]} 5. cxd5 {[%clk 0:03:01]}  Nxd5 {[%clk 0:03:00]} 6. a3 {[%clk 0:02:52]}  Bd6 {[%clk 0:02:55]} 7. d3 {[%clk 0:02:52]}  Qf6 {[%clk 0:02:55]} 8. Nd2 {[%clk 0:02:49]}  Qg6 {[%clk 0:02:53]} 9. Ngf3 {[%clk 0:02:49]}  O-O {[%clk 0:02:42]} 10. Qc2 {[%clk 0:02:44]}  Be6 {[%clk 0:02:39]} 11. h4 {[%clk 0:02:43]}  f6 {[%clk 0:02:37]} 12. h5 {[%clk 0:02:42]}  Qf7 {[%clk 0:02:37]} 13. h6 {[%clk 0:02:43]}  g5 {[%clk 0:02:37]} 14. Ne4 {[%clk 0:02:42]}  a5 {[%clk 0:02:25]} 15. Be2 {[%clk 0:02:25]}  Nde7 {[%clk 0:02:21]} 16. Nfd2 {[%clk 0:02:25]}  Nf5 {[%clk 0:02:07]} 17. Nc4 {[%clk 0:02:20]}  Be7 {[%clk 0:02:02]} 18. Bh5 {[%clk 0:02:16]}  Bxc4 {[%clk 0:01:45]} 19. Bxf7+ {[%clk 0:02:16]}  Bxf7 {[%clk 0:01:45]} 20. O-O {[%clk 0:02:16]}  Nxh6 {[%clk 0:01:43]} 21. Nc5 {[%clk 0:02:15]}  Bxc5 {[%clk 0:01:41]} 22. Qxc5 {[%clk 0:02:16]}  Rfd8 {[%clk 0:01:38]} 23. d4 {[%clk 0:02:16]}  exd4 {[%clk 0:01:38]} 24. Bxd4 {[%clk 0:02:16]}  Nxd4 {[%clk 0:01:37]} 25. exd4 {[%clk 0:02:16]}  c6 {[%clk 0:01:36]} 26. Rfe1 {[%clk 0:02:14]}  Bxb3 {[%clk 0:01:34]} 27. Re7 {[%clk 0:02:11]}  Rd5 {[%clk 0:01:18]} 28. Qc3 {[%clk 0:02:09]}  Nf5 {[%clk 0:01:08]} 29. Rxb7 {[%clk 0:02:02]}  Nxd4 {[%clk 0:01:08]} 30. Re1 {[%clk 0:01:57]}  a4 {[%clk 0:00:49]} 31. Ree7 {[%clk 0:01:54]}  h5 {[%clk 0:00:29]} 32. Rg7+ {[%clk 0:01:52]}  Kf8 {[%clk 0:00:26]} 33. Qb4+ {[%clk 0:01:51]}  c5 {[%clk 0:00:25]} 34. Qb6 {[%clk 0:01:51]}  Ne6 {[%clk 0:00:14]} 35. Rbf7+ {[%clk 0:01:51]}  Ke8 {[%clk 0:00:14]} 36. Qxe6+ {[%clk 0:01:51]} 1-0


[Site "https://www.chess.com"]

[Event "Titled Tuesday Blitz July 20 2021"]
[White "Nathan, Nitish"]
[Black "Gabrielian, Artur"]
[WhiteFideId "30927870"]
[BlackFideId "4131002"]
[WhiteElo "2250"]
[BlackElo "2523"]
[Result "0-1"]
[Round "07"]
[TimeControl "180+1"]
[Date "2021.07.21"]
[WhiteClock "0:01:01"]
[BlackClock "0:00:14"]

1. d4 {[%clk 0:03:00]}  Nf6 {[%clk 0:02:58]} 2. Bf4 {[%clk 0:03:00]}  d5 {[%clk 0:02:56]} 3. e3 {[%clk 0:03:00]}  e6 {[%clk 0:02:54]} 4. Nd2 {[%clk 0:02:58]}  c5 {[%clk 0:02:53]} 5. c3 {[%clk 0:02:57]}  Bd6 {[%clk 0:02:50]} 6. Bg3 {[%clk 0:02:57]}  O-O {[%clk 0:02:49]} 7. Ngf3 {[%clk 0:02:57]}  Qc7 {[%clk 0:02:48]} 8. Bd3 {[%clk 0:02:55]}  Nbd7 {[%clk 0:02:47]} 9. O-O {[%clk 0:02:53]}  Bxg3 {[%clk 0:02:46]} 10. hxg3 {[%clk 0:02:53]}  e5 {[%clk 0:02:45]} 11. dxe5 {[%clk 0:02:53]}  Nxe5 {[%clk 0:02:45]} 12. Nxe5 {[%clk 0:02:53]}  Qxe5 {[%clk 0:02:45]} 13. Nf3 {[%clk 0:02:54]}  Qe7 {[%clk 0:02:44]} 14. Re1 {[%clk 0:02:52]}  b6 {[%clk 0:02:42]} 15. c4 {[%clk 0:02:51]}  dxc4 {[%clk 0:02:38]} 16. Bxc4 {[%clk 0:02:49]}  Bb7 {[%clk 0:02:35]} 17. Be2 {[%clk 0:02:48]}  Rfd8 {[%clk 0:02:34]} 18. Qc1 {[%clk 0:02:46]}  Rd6 {[%clk 0:02:31]} 19. Nh4 {[%clk 0:02:43]}  g6 {[%clk 0:02:30]} 20. Bf3 {[%clk 0:02:42]}  Ne4 {[%clk 0:02:26]} 21. Qc2 {[%clk 0:02:37]}  Rd2 {[%clk 0:02:18]} 22. Qc4 {[%clk 0:02:33]}  Nxf2 {[%clk 0:02:11]} 23. Bxb7 {[%clk 0:02:27]}  Qxb7 {[%clk 0:02:11]} 24. Nf3 {[%clk 0:02:15]}  Rxb2 {[%clk 0:01:58]} 25. Qc3 {[%clk 0:02:10]}  Rb4 {[%clk 0:01:03]} 26. Kxf2 {[%clk 0:02:06]}  Re8 {[%clk 0:01:00]} 27. Rad1 {[%clk 0:02:04]}  Qc6 {[%clk 0:00:56]} 28. Rd2 {[%clk 0:01:59]}  Rbe4 {[%clk 0:00:55]} 29. Red1 {[%clk 0:01:52]}  Rxe3 {[%clk 0:00:52]} 30. Qxe3 {[%clk 0:01:51]}  Rxe3 {[%clk 0:00:52]} 31. Kxe3 {[%clk 0:01:52]}  h6 {[%clk 0:00:51]} 32. Rd8+ {[%clk 0:01:50]}  Kg7 {[%clk 0:00:51]} 33. R8d7 {[%clk 0:01:47]}  Qe6+ {[%clk 0:00:51]} 34. Kf2 {[%clk 0:01:46]}  Qxa2+ {[%clk 0:00:51]} 35. Kg1 {[%clk 0:01:46]}  Qe6 {[%clk 0:00:44]} 36. Rxa7 {[%clk 0:01:40]}  c4 {[%clk 0:00:40]} 37. Rc7 {[%clk 0:01:33]}  b5 {[%clk 0:00:38]} 38. Nd4 {[%clk 0:01:30]}  Qb6 {[%clk 0:00:31]} 39. Rc6 {[%clk 0:01:26]}  Qb7 {[%clk 0:00:30]} 40. Rb1 {[%clk 0:01:23]}  Qa7 {[%clk 0:00:28]} 41. Rd6 {[%clk 0:01:21]}  Qc5 {[%clk 0:00:23]} 42. Rd8 {[%clk 0:01:17]}  b4 {[%clk 0:00:23]} 43. Kh1 {[%clk 0:01:13]}  c3 {[%clk 0:00:22]} 44. Rd7 {[%clk 0:01:13]}  Qh5+ {[%clk 0:00:16]} 45. Kg1 {[%clk 0:01:11]}  Qg4 {[%clk 0:00:17]} 46. Rd6 {[%clk 0:01:04]}  Qxg3 {[%clk 0:00:14]} 47. Rf1 {[%clk 0:01:01]}  Qxd6 {[%clk 0:00:14]} 0-1


[Site "https://www.chess.com"]

[Event "Titled Tuesday Blitz July 20 2021"]
[White "Nefedov, Sergey"]
[Black "Timofeev, Artyom"]
[WhiteFideId "24113417"]
[BlackFideId "4140419"]
[WhiteElo "2385"]
[BlackElo "2582"]
[Result "0-1"]
[Round "07"]
[TimeControl "180+1"]
[Date "2021.07.20"]
[WhiteClock "0:00:01"]
[BlackClock "0:00:24"]

1. d4 {[%clk 0:03:00]}  Nf6 {[%clk 0:02:59]} 2. Nf3 {[%clk 0:03:00]}  b6 {[%clk 0:02:59]} 3. g3 {[%clk 0:02:59]}  Bb7 {[%clk 0:02:59]} 4. Bg2 {[%clk 0:02:59]}  g6 {[%clk 0:02:59]} 5. O-O {[%clk 0:02:59]}  Bg7 {[%clk 0:03:00]} 6. c4 {[%clk 0:02:58]}  O-O {[%clk 0:02:59]} 7. Nc3 {[%clk 0:02:58]}  Ne4 {[%clk 0:02:59]} 8. Nxe4 {[%clk 0:02:39]}  Bxe4 {[%clk 0:02:58]} 9. Be3 {[%clk 0:02:35]}  d5 {[%clk 0:02:57]} 10. Rc1 {[%clk 0:02:29]}  Nd7 {[%clk 0:02:53]} 11. Qb3 {[%clk 0:02:21]}  c5 {[%clk 0:02:48]} 12. cxd5 {[%clk 0:02:15]}  Bxf3 {[%clk 0:02:44]} 13. Bxf3 {[%clk 0:02:11]}  cxd4 {[%clk 0:02:45]} 14. Bf4 {[%clk 0:02:07]}  Nc5 {[%clk 0:02:44]} 15. Qb5 {[%clk 0:01:58]}  a6 {[%clk 0:02:43]} 16. Qc4 {[%clk 0:01:51]}  a5 {[%clk 0:02:41]} 17. Rfd1 {[%clk 0:01:38]}  Qd7 {[%clk 0:02:36]} 18. b3 {[%clk 0:01:21]}  Rac8 {[%clk 0:02:34]} 19. Kg2 {[%clk 0:00:55]}  Rfd8 {[%clk 0:02:11]} 20. e3 {[%clk 0:00:37]}  b5 {[%clk 0:01:42]} 21. Qe2 {[%clk 0:00:31]}  d3 {[%clk 0:01:35]} 22. Qd2 {[%clk 0:00:28]}  b4 {[%clk 0:01:35]} 23. e4 {[%clk 0:00:28]}  Bc3 {[%clk 0:01:25]} 24. Qe3 {[%clk 0:00:24]}  e5 {[%clk 0:01:21]} 25. Bg5 {[%clk 0:00:18]}  Re8 {[%clk 0:01:20]} 26. h4 {[%clk 0:00:11]}  Qd6 {[%clk 0:01:16]} 27. h5 {[%clk 0:00:11]}  f6 {[%clk 0:01:09]} 28. Bh6 {[%clk 0:00:11]}  g5 {[%clk 0:01:09]} 29. Bg4 {[%clk 0:00:11]}  Rc7 {[%clk 0:01:06]} 30. Bf5 {[%clk 0:00:10]}  Kh8 {[%clk 0:00:43]} 31. Kh3 {[%clk 0:00:08]}  Ra8 {[%clk 0:00:41]} 32. f4 {[%clk 0:00:08]}  Bd4 {[%clk 0:00:28]} 33. Qf3 {[%clk 0:00:07]}  Rg8 {[%clk 0:00:27]} 34. Re1 {[%clk 0:00:01]}  g4+ {[%clk 0:00:24]} 35. Bxg4 {[%clk 0:00:01]}  f5 {[%clk 0:00:24]} 0-1


[Site "https://www.chess.com"]